fUSD/lending_fUSD_20240729
["ID","MTS","AMOUNT","RATE_DAILY","PERIOD"]
[333527410,1722232232362,-150.46,0.000105,2]
[333527411,1722232232372,-590.12,0.000105,2]
[333527412,1722232232381,-711.8,0.000105,2]
[333527413,1722232232390,-303.38,0.000105,2]
[333527414,1722232232399,-150.0,0.000105,2]
[333527415,1722232232408,-301.78,0.000105,2]
[333527416,1722232232417,-425.65,0.00010578,2]
[333527417,1722232232427,-530.19,0.00010578,2]
[333527418,1722232232437,-530.19,0.000106,2]
[333527419,1722232232446,-274.26,0.000106,2]
[333527420,1722232232455,-530.19,0.000106,2]
[333527421,1722232232464,-217.42,0.000106,2]
[333527422,1722232232474,-2500.0,0.000107,2]
[333527423,1722232232484,-198.46920995,0.00010758,2]
[333527424,1722232232494,-205.1663665,0.00010758,2]
[333527425,1722232232503,-196.588919,0.00010779,2]
[333527426,1722232232512,-175.415356,0.00010779,2]
[333527427,1722232232522,-205.16636647,0.00010794,2]
[333527428,1722232232531,-123005.74081884,0.000108,2]
[333527429,1722232233090,-700.20675753,0.000108,2]
[333527430,1722232233140,-42372.2018741,0.000108,2]
[333527432,1722232238674,-250.0,0.00010046,2]
[333527433,1722232238683,-3879.05699686,0.000108,2]
[333527434,1722232238854,-43108.30251922,0.000108,2]
[333527435,1722232238865,-1356.00596654,0.000108,2]
[333527436,1722232238893,-360.86093302,0.000108,2]
[333527437,1722232238933,-2796.74232,0.000108,2]
[333527438,1722232238944,-290.099993,0.000108,2]
[333527439,1722232238956,-274.1999813,0.000108,2]
[333527440,1722232238967,-500.0,0.000108,2]
[333527441,1722232238979,-1048.32267726,0.000108,2]
[333527442,1722232239013,-3742.70217563,0.000108,2]
[333527443,1722232239025,-534.02114835,0.000108,2]
[333527488,1722232240352,-3756.6679994,0.000108,2]
[333527489,1722232240457,-602.6273434,0.000108,2]
[333527490,1722232240557,-27884.4,0.000108,2]
[333527496,1722232243226,-668.37,0.000108,2]
[333527497,1722232243237,-2356.07982558,0.000108,2]
[333527498,1722232243250,-775.71000006,0.000108,2]
[333527499,1722232243262,-337.31869594,0.000108,2]
[333527500,1722232243324,-372.22696474,0.000108,2]
[333527501,1722232243427,-70003.52078835,0.000108,2]
[333527502,1722232243528,-663404.95179098,0.000108,2]
[333527510,1722232246234,-69879.56202216,0.000108,2]
[333527511,1722232246343,-3063.31053378,0.000108,2]
[333527512,1722232246356,-3494.35,0.000108,2]
[333527513,1722232246368,-69701.71977126,0.000108,2]
[333527514,1722232247656,-2923.5423352,0.000108,2]
[333527515,1722232247667,-4535.05064,0.000108,2]
[333527516,1722232247678,-31057.13599495,0.000108,2]
[333527517,1722232302885,4192.86293997,6.781e-05,7]
[333527518,1722232341726,872.26586955,6.781e-05,2]
[333527519,1722232342542,797.58813832,6.781e-05,2]
[333527520,1722232345059,165.26068746,6.781e-05,2]
[333527521,1722232345737,1370.0029794,6.781e-05,2]
[333527523,1722232350037,683.2,6.781e-05,2]
[333527524,1722232352384,155.05540964,6.781e-05,2]
[333527525,1722232354393,7570.88133698,6.781e-05,2]
[333527526,1722232357312,291.62459563,6.781e-05,2]
[333527527,1722232358600,411.49590119,6.781e-05,2]
[333527528,1722232360400,155.07603672,6.781e-05,2]
[333527529,1722232360516,5942.40600833,6.781e-05,2]
[333527530,1722232361851,364.01900323,6.781e-05,2]
[333527531,1722232364074,155.09666307,6.781e-05,2]
[333527532,1722232370565,790.28888999,6.781e-05,2]
[333527533,1722232377444,158.89214618,6.781e-05,2]
[333527534,1722232398697,18821.13738749,6.781e-05,2]
[333527535,1722232459718,171.93401522,5e-05,2]
[333527536,1722232461570,790.28888999,6.781e-05,2]
[333527537,1722232499642,363.64615275,6.781e-05,2]
[333527538,1722232502455,158.90161141,6.781e-05,2]
[333527539,1722232504617,411.5203761,6.781e-05,2]
[333527540,1722232507703,18821.13738749,6.781e-05,2]
[333527541,1722232507731,871.38901611,6.781e-05,2]
[333527542,1722232516555,376.87485103,6.781e-05,2]
[333527543,1722232517405,961.48164715,6.781e-05,2]
[333527544,1722232520325,291.30856985,6.781e-05,2]
[333527545,1722232522045,7568.12851025,6.781e-05,2]
[333527546,1722232522718,871.38901611,6.781e-05,2]
[333527548,1722232556576,790.28888999,6.781e-05,2]
[333527549,1722232591704,18821.13738749,6.781e-05,2]
[333527550,1722232598643,363.64615275,6.781e-05,2]
[333527551,1722232600454,158.90161141,6.781e-05,2]
[333527552,1722232603922,246.3159307,6.781e-05,2]
[333527553,1722232608819,291.30856985,6.781e-05,2]
[333527557,1722232615391,961.25222025,6.781e-05,2]
[333527561,1722232637731,871.07505387,6.781e-05,2]
[333527562,1722232647625,790.28888999,6.781e-05,2]
[333527563,1722232659237,200.0,6.747e-05,2]
[333527565,1722232685653,363.64615275,6.781e-05,2]
[333527566,1722232689713,18821.13738749,6.781e-05,2]
[333527567,1722232710823,291.1997363,6.781e-05,2]
[333527568,1722232710967,202.75992546,6.781e-05,2]
[333527573,1722232751621,790.28888999,6.781e-05,2]
[333527574,1722232776661,363.47535311,6.781e-05,2]
[333527575,1722232776758,18821.13738749,6.781e-05,2]
[333527576,1722232794535,20362.81266038,6.781e-05,2]
[333527579,1722232835605,790.28888999,6.781e-05,2]
[333527580,1722232863718,18821.13738749,6.781e-05,2]
[333527581,1722232920607,790.28888999,6.781e-05,2]
[333527582,1722232943717,533.03677076,6.781e-05,2]
[333527583,1722233008608,790.28888999,6.781e-05,2]
[333527584,1722233104623,288.2319344,6.781e-05,2]
[333527636,1722233432515,-317.77,8.219e-05,2]
[333527637,1722233432525,-721.99990386,8.219e-05,2]
[333527638,1722233432534,-388.94496104,8.219e-05,2]
[333527639,1722233432544,-1000.0,9.961e-05,2]
[333527640,1722233432554,-300.0,9.999e-05,2]
[333527641,1722233432563,-416.14,0.0001,2]
[333527642,1722233432574,-8.59792119,0.0001,2]
[333527643,1722233432585,-1163.1908,0.0001,2]
[333527644,1722233432596,-78.21127881,0.0001,2]
[333527645,1722233432605,-229.85307468,0.0001,2]
[333527646,1722233432616,-1270.14692532,0.0001,2]
[333527647,1722233432625,-317.77,0.00010474,2]
[333527648,1722233432635,-811.0,0.00010561,2]
[333527649,1722233432644,-525.215,0.00010561,2]
[333527650,1722233432653,-806.376,0.00010561,2]
[333527651,1722233432662,-1370.0,0.00010561,2]
[333527652,1722233432671,-2671.67,0.00010561,2]
[333527653,1722233432681,-2034.70116677,0.00010561,2]
[333527654,1722233432696,-668.7123356,0.00010561,2]
[333527655,1722233432707,-6033.3610252,0.00010561,2]
[333527656,1722233432718,-29647.22547243,0.00010561,2]
[333527658,1722233432727,-784.728,0.00010561,2]
[333527659,1722233432736,-1002.12725997,0.0001069,2]
[333527660,1722233432746,-255.5494,0.000107,2]
[333527661,1722233432755,-366.9528,0.000107,2]
[333527662,1722233432764,-704.39,0.000107,2]
[333527663,1722233432774,-4207.4348896,0.000107,2]
[333527673,1722233438470,-1073.0,0.00010561,2]
[333527674,1722233438479,-595.62598494,0.000107,2]
[333527675,1722233438491,-8018.72672546,0.000107,2]
[333527676,1722233438500,-1000.0,0.000107,2]
[333527677,1722233438510,-2250.0601,0.000107,2]
[333527678,1722233438519,-9066.2509,0.000107,2]
[333527679,1722233438528,-150.0,0.00010728,2]
[333527680,1722233438538,-150.0,0.0001074,2]
[333527681,1722233438547,-150.0,0.00010742,2]
[333527682,1722233438556,-150.0,0.00010746,2]
[333527683,1722233438566,-150.0,0.00010752,2]
[333527684,1722233438576,-150.0,0.00010752,2]
[333527685,1722233438586,-150.0,0.00010753,2]
[333527686,1722233438595,-150.0,0.00010756,2]
[333527687,1722233438604,-150.0,0.00010756,2]
[333527688,1722233438613,-150.0,0.00010759,2]
[333527689,1722233438622,-150.0,0.00010771,2]
[333527690,1722233438631,-150.0,0.00010774,2]
[333527691,1722233438641,-150.0,0.00010781,2]
[333527693,1722233438650,-150.0,0.00010784,2]
[333527694,1722233438659,-150.0,0.00010785,2]
[333527695,1722233438668,-150.0,0.00010787,2]
[333527696,1722233438677,-150.0,0.00010788,2]
[333527697,1722233438686,-150.0,0.00010788,2]
[333527699,1722233438695,-150.0,0.00010791,2]
[333527701,1722233438705,-150.0,0.00010792,2]
[333527703,1722233438714,-150.0,0.00010799,2]
[333527705,1722233438722,-150.0,0.00010799,2]
[333527707,1722233438732,-300.43987163,0.000108,2]
[333527708,1722233438741,-160.62913581,0.000108,2]
[333527710,1722233438750,-1049.53284588,0.000108,2]
[333527712,1722233438758,-181.62808435,0.000108,2]
[333527714,1722233438767,-449.05997968,0.000108,2]
[333527716,1722233438776,-617.1964264,0.000108,2]
[333527718,1722233438786,-412.68906953,0.000108,2]
[333527719,1722233438795,-1713.57290564,0.000108,2]
[333527721,1722233438808,-313.95415994,0.000108,2]
[333527732,1722233440442,-972.47293442,0.000108,2]
[333527733,1722233440452,-717.41706558,0.000108,2]
[333527734,1722233440463,-2048.29749451,0.000108,2]
[333527843,1722233443794,-1958.90462175,0.000108,2]
[333527845,1722233443806,-1747.35,0.000108,2]
[333527848,1722233443826,-919.65560474,0.000108,2]
[333527896,1722233446423,-670.56,0.000108,2]
[333527897,1722233446460,-321.65194139,0.000108,2]
[333527921,1722233447096,-18229.94665368,0.000108,2]
[333528217,1722234633044,-150.86,7.719e-05,2]
[333528218,1722234633053,-318.67,8.219e-05,2]
[333528219,1722234633063,-169.55,8.219e-05,2]
[333528220,1722234633073,-150.86,8.684e-05,2]
[333528221,1722234633083,-150.86,9.649e-05,2]
[333528222,1722234633093,-300.0,9.675e-05,2]
[333528223,1722234633102,-496.89,9.676e-05,2]
[333528224,1722234633267,-2894.49672796,9.676e-05,2]
[333528225,1722234633300,-3878.39999992,9.676e-05,2]
[333528226,1722234633312,-2109.53481332,9.676e-05,2]
[333528227,1722234633325,-10445.4384588,9.676e-05,2]
[333528228,1722234633335,-660.09,9.705e-05,2]
[333528229,1722234633344,-250.0,9.705e-05,2]
[333528230,1722234633354,-150.0,9.881e-05,2]
[333528231,1722234633363,-1000.0,9.882e-05,2]
[333528232,1722234633373,-1526.80451756,9.882e-05,2]
[333528233,1722234633384,-563.52333975,9.882e-05,2]
[333528234,1722234633396,-4154.9327313,9.882e-05,2]
[333528235,1722234633408,-606.63941139,9.882e-05,2]
[333528236,1722234633417,-432.02816953,9.882e-05,2]
[333528237,1722234633429,-67.96183047,9.882e-05,2]
[333528238,1722234633439,-1049.53284588,0.0001,2]
[333528239,1722234633448,-110.62014398,0.0001,2]
[333528241,1722234633469,-71.00794037,0.0001,2]
[333528242,1722234633479,-300.43987163,0.0001,2]
[333528243,1722234633488,-5002.0,0.0001,2]
[333528244,1722234633498,-503.28,0.0001,2]
[333528245,1722234633507,-500.0,0.0001,2]
[333528246,1722234633517,-289.372188,0.0001,2]
[333528256,1722234638270,-210.627812,0.0001,2]
[333528258,1722234638280,-500.0,0.0001,2]
[333528260,1722234638289,-300.30030115,0.0001,2]
[333528263,1722234638311,-33.35969885,0.0001,2]
[333528265,1722234638320,-2208.1,0.0001,2]
[333528267,1722234638328,-178.4,0.0001,2]
[333528269,1722234638338,-110930.24183251,0.00010166,6]
[333528271,1722234638350,-1438.0,0.00010166,6]
[333528277,1722234638548,-12874.6,0.00010166,6]
[333528278,1722234638560,-1168.91354638,0.00010166,6]
[333528279,1722234638572,-1659.99434364,0.00010166,6]
[333528280,1722234638588,-2040.00565636,0.00010166,6]
[333528281,1722234638600,-7272.65439133,0.00010166,6]
[333528282,1722234638612,-35173.11863979,0.00010166,6]
[333528283,1722234638625,-348.90998,0.00010166,6]
[333528284,1722234638636,-2008.30117002,0.00010166,6]
[333528285,1722234638667,-563.34505074,0.00010166,6]
[333528286,1722234638701,-1869.7443923,0.00010166,6]
[333528327,1722234639532,-1018.73673458,0.00010166,6]
[333528333,1722234639560,-488.9356486,0.00010166,6]
[333528379,1722234642174,-1697.0,0.00010166,6]
[333528380,1722234642186,-664.23120709,0.00010166,6]
[333528381,1722234642197,-3844.2178151,0.00010166,6]
[333528382,1722234642212,-4900.0,0.00010166,6]
[333528383,1722234642240,-1133.09726896,0.00010166,6]
[333528386,1722234642314,-859400.7723226,0.00010166,6]
[333528387,1722234642323,-284480.39,0.00010166,6]
[333528388,1722234642334,-12057.25,0.00010166,6]
[333528389,1722234642343,-42528.56,0.00010166,6]
[333528390,1722234642353,-66510.13,0.00010166,6]
[333528391,1722234642362,-55521.06,0.00010166,6]
[333528392,1722234642372,-34214.65,0.00010166,6]
[333528394,1722234642381,-11248.49,0.00010166,6]
[333528395,1722234642391,-128695.4,0.00010166,6]
[333528396,1722234642400,-25539.81,0.00010166,6]
[333528397,1722234642410,-15697.37,0.00010166,6]
[333528399,1722234642420,-5437.18,0.00010166,6]
[333528400,1722234642430,-5668.36,0.00010166,6]
[333528401,1722234642439,-425.72,0.00010192,2]
[333528402,1722234642448,-736.02,0.00010192,2]
[333528403,1722234642458,-798.76,0.00010192,2]
[333528404,1722234642468,-425.72,0.00010192,2]
[333528405,1722234642477,-425.72,0.00010192,2]
[333528406,1722234642486,-318.67,0.00010466,2]
[333528407,1722234642496,-6523.29945949,0.000106,2]
[333528408,1722234642505,-320.7457,0.000106,2]
[333528409,1722234642515,-150.86,0.00010613,2]
[333528410,1722234642524,-420.0,0.00010642,2]
[333528411,1722234642533,-150.79561,0.00010692,2]
[333528412,1722234642542,-26664.7312,0.000107,2]
[333528413,1722234642552,-18692.4591,0.000107,2]
[333528414,1722234642562,-7524.3194,0.000107,2]
[333528416,1722234642571,-942.7334,0.000107,2]
[333528418,1722234642581,-108591.95818583,0.000107,4]
[333528419,1722234642592,-1522.9613,0.000107,2]
[333528421,1722234642602,-471.90589686,0.000107,2]
[333528423,1722234642611,-150.0,0.00010727,2]
[333528425,1722234642620,-150.0,0.00010727,2]
[333528428,1722234642631,-150.0,0.00010728,2]
[333528431,1722234642640,-150.0,0.00010732,2]
[333528433,1722234642649,-150.0,0.00010733,2]
[333528435,1722234642658,-150.0,0.00010734,2]
[333528438,1722234642668,-150.0,0.00010735,2]
[333528441,1722234642677,-22630.347,0.0001074,2]
[333528443,1722234642687,-150.0,0.00010746,2]
[333528445,1722234642696,-150.0,0.00010746,2]
[333528446,1722234642705,-1500.0,0.00010747,2]
[333528447,1722234642714,-284.60028757,0.00010747,2]
[333528448,1722234642723,-150.0,0.0001075,2]
[333528449,1722234642732,-150.0,0.00010751,2]
[333528450,1722234642741,-150.0,0.00010752,2]
[333528451,1722234642751,-150.0,0.00010754,2]
[333528452,1722234642760,-150.0,0.00010756,2]
[333528453,1722234642769,-150.0,0.00010758,2]
[333528454,1722234642779,-150.0,0.00010758,2]
[333528455,1722234642788,-150.0,0.00010764,2]
[333528456,1722234642797,-150.0,0.00010769,2]
[333528457,1722234642807,-150.0,0.0001077,2]
[333528458,1722234642818,-150.0,0.00010777,2]
[333528459,1722234642827,-150.0,0.00010777,2]
[333528460,1722234642836,-150.0,0.00010778,2]
[333528461,1722234642846,-150.0,0.00010779,2]
[333528462,1722234642855,-150.0,0.00010779,2]
[333528463,1722234642864,-150.0,0.0001078,2]
[333528464,1722234642874,-150.0,0.00010785,2]
[333528465,1722234642883,-150.0,0.00010793,2]
[333528466,1722234642892,-150.0,0.00010795,2]
[333528467,1722234642902,-150.0,0.00010796,2]
[333528468,1722234642911,-150.0,0.00010798,2]
[333528469,1722234642920,-150.0,0.00010798,2]
[333528470,1722234642929,-617.1964264,0.000108,2]
[333528471,1722234642938,-449.05997968,0.000108,2]
[333528472,1722234642948,-412.68906953,0.000108,2]
[333528473,1722234642957,-2000.0,0.000108,2]
[333528474,1722234642966,-200.0,0.000108,2]
[333528475,1722234642975,-2000.0,0.000108,2]
[333528476,1722234642986,-200.0,0.000108,2]
[333528477,1722234642995,-2000.0,0.000108,2]
[333528478,1722234643004,-200.0,0.000108,2]
[333528479,1722234643013,-3000.0,0.000108,2]
[333528480,1722234643022,-150.0,0.000108,2]
[333528481,1722234643031,-2000.0,0.000108,2]
[333528482,1722234643041,-411.47056538,0.000108,2]
[333528483,1722234643050,-200.0,0.000108,2]
[333528484,1722234643059,-363.60345284,0.000108,2]
[333528485,1722234643070,-15001.21058784,0.000108,2]
[333528486,1722234643079,-7585.20647438,0.000108,2]
[333528487,1722234643089,-4025101.2077509,0.000108,2]
[333528488,1722234643098,-250.0,0.000108,2]
[333528489,1722234643107,-150.0,0.00010802,2]
[333528490,1722234643116,-150.0,0.00010806,2]
[333528491,1722234643125,-150.0,0.00010807,2]
[333528492,1722234643135,-150.0,0.00010808,2]
[333528493,1722234643144,-1500.0,0.00010817,2]
[333528494,1722234643153,-150.0,0.00010818,2]
[333528495,1722234643163,-150.0,0.00010821,2]
[333528496,1722234643173,-539.0,0.00010829,2]
[333528497,1722234643182,-150.0,0.00010835,2]
[333528498,1722234643191,-1500.0,0.00010835,2]
[333528499,1722234643201,-150.0,0.00010838,2]
[333528500,1722234643210,-150.0,0.00010839,2]
[333528501,1722234643219,-150.0,0.00010842,2]
[333528502,1722234643228,-150.0,0.00010845,2]
[333528503,1722234643237,-150.0,0.00010845,2]
[333528504,1722234643246,-150.0,0.00010846,2]
[333528505,1722234643255,-150.0,0.00010847,2]
[333528506,1722234643264,-150.0,0.00010848,2]
[333528507,1722234643273,-150.0,0.00010852,2]
[333528508,1722234643282,-150.0,0.00010856,2]
[333528509,1722234643292,-1270.0895,0.00010858,2]
[333528510,1722234643301,-150.0,0.00010859,2]
[333528511,1722234643310,-150.0,0.0001086,2]
[333528512,1722234643321,-150.0,0.00010861,2]
[333528513,1722234643330,-1500.0,0.00010868,2]
[333528514,1722234643340,-150.0,0.00010871,2]
[333528515,1722234643349,-150.0,0.00010872,2]
[333528516,1722234643358,-1500.0,0.00010872,2]
[333528517,1722234643490,-150.0,0.00010875,2]
[333528518,1722234643500,-150.0,0.00010877,2]
[333528519,1722234643509,-150.0,0.00010878,2]
[333528520,1722234643518,-9847.97918042,0.0001088,2]
[333528521,1722234643528,-150.0,0.0001088,2]
[333528522,1722234643537,-150.0,0.00010881,2]
[333528523,1722234643547,-150.0,0.00010883,2]
[333528524,1722234643556,-150.0,0.00010889,2]
[333528525,1722234643567,-150.0,0.0001089,2]
[333528526,1722234643577,-212.0,0.0001089,2]
[333528527,1722234643589,-750.84199463,0.000109,2]
[333528528,1722234643599,-150.0,0.000109,2]
[333528529,1722234643609,-159.3101704,0.000109,2]
[333528530,1722234643618,-159.31017032,0.000109,2]
[333528531,1722234643628,-155.35,0.000109,2]
[333528532,1722234643638,-155.35,0.000109,2]
[333528533,1722234643647,-155.35,0.000109,2]
[333528534,1722234643656,-155.35,0.000109,2]
[333528535,1722234643667,-155.35,0.000109,2]
[333528536,1722234643676,-155.35,0.000109,2]
[333528537,1722234643685,-155.35,0.000109,2]
[333528538,1722234643695,-155.35,0.000109,2]
[333528539,1722234643704,-155.35,0.000109,2]
[333528540,1722234643714,-155.35,0.000109,2]
[333528541,1722234643723,-155.35,0.000109,2]
[333528542,1722234643733,-159.31017032,0.000109,2]
[333528543,1722234643742,-155.35,0.000109,2]
[333528544,1722234643751,-159.31017032,0.000109,2]
[333528545,1722234643761,-159.31017032,0.000109,2]
[333528546,1722234643771,-159.31017032,0.000109,2]
[333528547,1722234643780,-159.31017032,0.000109,2]
[333528548,1722234643789,-159.31017032,0.000109,2]
[333528549,1722234643799,-150.0,0.00010901,2]
[333528550,1722234643808,-1500.0,0.00010904,2]
[333528551,1722234643819,-150.0,0.00010906,2]
[333528552,1722234643829,-150.0,0.00010906,2]
[333528553,1722234643839,-150.0,0.00010907,2]
[333528554,1722234643848,-2000.0,0.00010908,2]
[333528555,1722234643858,-200.0,0.00010908,2]
[333528556,1722234643867,-2000.0,0.00010908,2]
[333528557,1722234643882,-200.0,0.00010908,2]
[333528558,1722234643891,-2000.0,0.00010908,2]
[333528559,1722234643901,-200.0,0.00010908,2]
[333528560,1722234643911,-2000.0,0.00010908,2]
[333528561,1722234643920,-200.0,0.00010908,2]
[333528562,1722234643929,-500.0,0.0001091,2]
[333528563,1722234643939,-150.0,0.0001091,2]
[333528564,1722234643948,-500.0,0.00010911,2]
[333528565,1722234643957,-150.0,0.00010911,2]
[333528566,1722234643967,-150.0,0.00010915,2]
[333528567,1722234643976,-150.0,0.00010915,2]
[333528568,1722234643986,-150.0,0.00010918,2]
[333528569,1722234643996,-150.0,0.00010918,2]
[333528570,1722234644005,-150.0,0.00010926,2]
[333528571,1722234644014,-150.0,0.00010932,2]
[333528572,1722234644023,-150.0,0.00010934,2]
[333528573,1722234644032,-150.0,0.0001094,2]
[333528574,1722234644041,-150.0,0.00010943,2]
[333528575,1722234644049,-1500.0,0.00010944,2]
[333528576,1722234644058,-150.0,0.00010945,2]
[333528577,1722234644069,-150.0,0.00010947,2]
[333528578,1722234644078,-155.35,0.00010948,2]
[333528579,1722234644087,-150.0,0.00010951,2]
[333528580,1722234644096,-150.0,0.00010954,2]
[333528581,1722234644105,-500.0,0.00010958,2]
[333528582,1722234644114,-500.0,0.00010958,2]
[333528583,1722234644123,-500.0,0.00010958,2]
[333528584,1722234644133,-505.64064496,0.00010958,2]
[333528585,1722234644142,-520.46823821,0.00010958,2]
[333528586,1722234644151,-515.33111407,0.00010958,2]
[333528587,1722234644161,-512.10344338,0.00010958,2]
[333528588,1722234644170,-518.90488879,0.00010958,2]
[333528589,1722234644179,-500.85296894,0.00010958,2]
[333528590,1722234644188,-503.54896456,0.00010958,2]
[333528591,1722234644197,-508.48908352,0.00010958,2]
[333528592,1722234644206,-526.12886638,0.00010958,2]
[333528593,1722234644215,-317.36472586,0.00010958,2]
[333528594,1722234644225,-500.0,0.00010958,2]
[333528595,1722234644245,-511.0959029,0.00010958,2]
[333528596,1722234644261,-500.0,0.00010958,2]
[333528597,1722234644280,-500.0,0.00010958,2]
[333528598,1722234644297,-638.73,0.00010958,2]
[333528599,1722234644315,-500.0,0.00010958,2]
[333528600,1722234644333,-500.0,0.00010958,2]
[333528601,1722234644352,-500.0,0.00010958,2]
[333528602,1722234644370,-503.89666968,0.00010958,2]
[333528603,1722234644387,-500.0,0.00010958,2]
[333528604,1722234644405,-500.0,0.00010958,2]
[333528605,1722234644421,-503.88639185,0.00010958,2]
[333528606,1722234644435,-504.87752708,0.00010958,2]
[333528607,1722234644451,-503.65068745,0.00010958,2]
[333528608,1722234644465,-500.0,0.00010958,2]
[333528609,1722234644479,-500.0,0.00010958,2]
[333528610,1722234644493,-500.0,0.00010958,2]
[333528611,1722234644506,-500.0,0.00010958,2]
[333528612,1722234644524,-500.0,0.00010958,2]
[333528613,1722234644539,-500.0,0.00010958,2]
[333528614,1722234644553,-500.0,0.00010958,2]
[333528615,1722234644569,-500.0,0.00010958,2]
[333528616,1722234644585,-150.66814137,0.00010958,2]
[333528617,1722234644602,-583.38757577,0.00010958,2]
[333528618,1722234644618,-500.0,0.00010958,2]
[333528619,1722234644633,-500.0,0.00010958,2]
[333528620,1722234644649,-405.79384232,0.00010958,2]
[333528621,1722234644663,-500.0,0.00010958,2]
[333528622,1722234644678,-606.19142198,0.00010958,2]
[333528623,1722234644694,-500.0,0.00010958,2]
[333528624,1722234644708,-500.0,0.00010958,2]
[333528625,1722234644723,-1116.38,0.00010958,2]
[333528626,1722234644737,-1116.38,0.00010958,2]
[333528627,1722234644752,-1116.38,0.00010958,2]
[333528628,1722234644767,-1116.38,0.00010958,2]
[333528629,1722234644782,-1116.38,0.00010958,2]
[333528630,1722234644797,-1116.38,0.00010958,2]
[333528631,1722234644811,-1116.38,0.00010958,2]
[333528632,1722234644828,-1116.38,0.00010958,2]
[333528633,1722234644842,-1116.38,0.00010958,2]
[333528634,1722234644857,-1116.38,0.00010958,2]
[333528635,1722234644872,-1116.38,0.00010958,2]
[333528636,1722234644888,-1116.38,0.00010958,2]
[333528637,1722234644904,-1116.38,0.00010958,2]
[333528638,1722234644919,-1116.38,0.00010958,2]
[333528639,1722234644934,-1116.38,0.00010958,2]
[333528640,1722234644950,-1116.38,0.00010958,2]
[333528641,1722234644965,-1116.38,0.00010958,2]
[333528642,1722234644981,-1116.38,0.00010958,2]
[333528643,1722234644996,-1116.38,0.00010958,2]
[333528644,1722234645011,-1116.38,0.00010958,2]
[333528645,1722234645026,-1116.38,0.00010958,2]
[333528646,1722234645041,-1116.38,0.00010958,2]
[333528647,1722234645056,-1116.38,0.00010958,2]
[333528648,1722234645071,-1116.55,0.00010958,2]
[333528649,1722234645086,-500.0,0.00010958,2]
[333528650,1722234645101,-500.0,0.00010958,2]
[333528651,1722234645116,-500.0,0.00010958,2]
[333528652,1722234645130,-500.0,0.00010958,2]
[333528653,1722234645143,-500.0,0.00010958,2]
[333528654,1722234645158,-500.0,0.00010958,2]
[333528655,1722234645172,-500.0,0.00010958,2]
[333528656,1722234645187,-500.0,0.00010958,2]
[333528657,1722234645201,-500.0,0.00010958,2]
[333528658,1722234645216,-500.0,0.00010958,2]
[333528659,1722234645230,-500.0,0.00010958,2]
[333528660,1722234645244,-500.0,0.00010958,2]
[333528661,1722234645258,-612.57,0.00010958,2]
[333528663,1722234645272,-500.0,0.00010958,2]
[333528664,1722234645286,-500.0,0.00010958,2]
[333528665,1722234645300,-500.0,0.00010958,2]
[333528666,1722234645318,-500.0,0.00010958,2]
[333528667,1722234645332,-500.0,0.00010958,2]
[333528668,1722234645347,-500.0,0.00010958,2]
[333528669,1722234645361,-500.0,0.00010958,2]
[333528670,1722234645376,-500.0,0.00010958,2]
[333528671,1722234645390,-500.0,0.00010958,2]
[333528672,1722234645405,-500.0,0.00010958,2]
[333528677,1722234645572,-500.0,0.00010958,2]
[333528678,1722234645584,-500.0,0.00010958,2]
[333528679,1722234645598,-534.6,0.00010958,2]